bitfinex-derivatives/quotes_BTCF0:USTF0_20250416
["timestamp","ask_amount","ask_price","bid_price","bid_amount"]
[1744829221118,0.1173,83791.0,83781.0,0.4901564]
[1744829221312,0.1769715,83791.0,83781.0,0.4901564]
[1744829221518,0.1193518,83785.0,83781.0,0.4901564]
[1744829221917,0.11953399,83782.0,83781.0,0.4901564]
[1744829222321,0.11953399,83782.0,83781.0,0.3708]
[1744829222526,0.35773399,83782.0,83781.0,0.1294364]
[1744829222729,0.35873399,83782.0,83781.0,0.1294364]
[1744829222919,0.00117909,83782.0,83781.0,0.4902364]
[1744829224218,0.059661,83806.0,83787.0,0.0596734]
[1744829224418,0.1156,83809.0,83803.0,0.3608]
[1744829224618,0.1789729,83811.0,83810.0,0.1193136]
[1744829225024,0.02250598,83812.0,83811.0,0.1193136]
[1744829225221,0.1153,83829.0,83828.0,0.1192894]
[1744829225425,0.1156,83833.0,83832.0,0.1192838]
[1744829225617,0.11547897,83837.0,83834.0,0.0596398]
[1744829225823,0.11547897,83837.0,83836.0,0.1192781]
[1744829226326,0.00924425,83837.0,83836.0,0.1292781]
[1744829227021,0.3608,83846.0,83845.0,0.1192653]
[1744829227220,0.3608,83846.0,83845.0,0.1292653]
[1744829227428,0.4800638,83846.0,83845.0,0.1292653]
[1744829227627,0.3608,83846.0,83845.0,0.1292653]
[1744829227930,0.1788745,83858.0,83857.0,0.1192482]
[1744829228124,0.1788678,83861.0,83860.0,0.1788603]
[1744829228424,0.0596235,83858.0,83852.0,0.3608]
[1744829228630,0.1192581,83850.0,83849.0,0.11943547]
[1744829228818,0.1192581,83850.0,83849.0,0.12943547]
[1744829229021,0.1192548,83853.0,83852.0,0.1192553]
[1744829229224,0.2349459,83860.0,83859.0,0.1192453]
[1744829229428,0.1192459,83860.0,83859.0,0.1192453]
[1744829229929,0.2420459,83860.0,83859.0,0.1192453]
[1744829230222,0.0596264,83855.0,83854.0,0.1788782]
[1744829230620,0.0596264,83855.0,83854.0,0.0597057]
[1744829230816,0.0596264,83855.0,83854.0,8e-05]
[1744829231018,0.0596264,83855.0,83854.0,0.1193325]
[1744829232126,0.0596264,83855.0,83854.0,8e-05]
[1744829232519,0.1192581,83850.0,83845.0,0.0596326]
[1744829232718,0.1192581,83850.0,83849.0,0.11943857]
[1744829232929,0.1192581,83850.0,83849.0,0.00017897]
[1744829233128,0.1192581,83850.0,83849.0,0.11943857]
[1744829233640,0.3608,83854.0,83851.0,0.0596277]
[1744829233822,0.3608,83854.0,83853.0,0.1192539]
[1744829234326,0.4800525,83854.0,83853.0,0.1192539]
[1744829234526,0.3608,83854.0,83853.0,0.1292539]
[1744829234728,0.3608,83854.0,83853.0,0.1293339]
[1744829234927,0.4800525,83854.0,83853.0,0.1293339]
[1744829235230,0.01711741,83861.0,83860.0,0.1192439]
[1744829235419,0.059615,83870.0,83863.0,0.1192397]
[1744829235625,0.059615,83870.0,83863.0,0.1292397]
[1744829235819,0.15111281,83864.0,83863.0,0.1292397]
[1744829236132,0.14216047,83864.0,83863.0,0.1293197]
[1744829236326,0.1242382,83864.0,83863.0,0.1293197]
[1744829236530,0.005,83864.0,83863.0,0.2550197]
[1744829236729,0.1242382,83864.0,83863.0,0.2550197]
[1744829237027,0.1252382,83864.0,83863.0,0.1293197]
[1744829237527,0.006,83864.0,83863.0,0.1302397]
[1744829237722,0.006,83864.0,83863.0,0.2560197]
[1744829238629,0.01474556,83864.0,83863.0,0.2560197]
[1744829238833,0.00017897,83866.0,83865.0,0.1192368]
[1744829239029,0.00017897,83866.0,83865.0,0.1292368]
[1744829239229,0.11941437,83866.0,83865.0,0.1292368]
[1744829239429,0.00017897,83866.0,83865.0,0.1292368]
[1744829239822,0.11941437,83866.0,83865.0,0.1292368]
[1744829240029,0.14629182,83866.0,83865.0,0.1302368]
[1744829240226,0.14629182,83866.0,83865.0,0.1213168]
[1744829240426,0.14629182,83866.0,83865.0,0.1212368]
[1744829240729,0.02705642,83866.0,83865.0,0.1213168]
[1744829241030,0.14629182,83866.0,83865.0,0.00208]
[1744829241425,0.14629182,83866.0,83865.0,0.1212368]
[1744829241626,0.14629182,83866.0,83865.0,0.1203168]
[1744829241831,0.14629182,83866.0,83865.0,0.1213168]
[1744829242331,0.14729182,83866.0,83865.0,0.1193168]
[1744829242528,0.15129182,83866.0,83865.0,0.1203168]
[1744829243138,0.14729182,83866.0,83865.0,0.1193168]
[1744829243437,0.14729182,83866.0,83865.0,0.001]
[1744829243636,0.14629182,83866.0,83865.0,0.00208]
[1744829243933,0.14629182,83866.0,83865.0,0.1213168]
[1744829244829,0.02705642,83866.0,83865.0,0.1213168]
[1744829245035,0.00933361,83866.0,83865.0,0.7322168]
[1744829245230,0.21109082,83874.0,83873.0,0.1192254]
[1744829245536,0.23714675,83874.0,83873.0,0.4800254]
[1744829246130,0.22007692,83874.0,83873.0,0.7211254]
[1744829246536,0.0089861,83874.0,83873.0,0.7211254]
[1744829246736,0.122,83880.0,83879.0,0.1192169]
[1744829246930,0.2412155,83880.0,83879.0,0.1192169]
[1744829247629,0.00017887,83882.0,83881.0,0.1192141]
[1744829247828,0.00017887,83882.0,83881.0,0.1292141]
[1744829248230,0.0176954,83882.0,83881.0,0.3640141]
[1744829248432,0.1352954,83882.0,83881.0,0.3640141]
[1744829248936,0.1362954,83882.0,83881.0,0.3640141]
[1744829249338,0.1352954,83882.0,83881.0,0.3660141]
[1744829249529,0.1362954,83882.0,83881.0,0.3690141]
[1744829250033,0.09007518,83884.0,83883.0,0.1192112]
[1744829250238,0.09007518,83884.0,83883.0,0.4900112]
[1744829251335,0.01711087,83886.0,83883.0,0.36710181]
[1744829251535,0.2377,83885.0,83884.0,0.1192098]
[1744829251740,0.2377,83885.0,83884.0,0.1292098]
[1744829251926,0.12384976,83885.0,83884.0,0.1292098]
[1744829252242,0.12384976,83885.0,83884.0,0.3737098]
[1744829252827,0.12484976,83885.0,83884.0,0.3767098]
[1744829253228,0.12484976,83885.0,83884.0,0.3787098]
[1744829253833,0.12484976,83885.0,83884.0,0.1342098]
[1744829254138,0.24224976,83885.0,83884.0,0.1312898]
[1744829254334,0.36245816,83885.0,83884.0,0.1242098]
[1744829254529,0.24324976,83885.0,83884.0,0.11302748]
[1744829254737,0.24224976,83885.0,83884.0,0.11010748]
[1744829254940,0.24324976,83885.0,83884.0,0.34610748]
[1744829255335,0.24324976,83885.0,83884.0,0.34410748]
[1744829255536,0.24324976,83885.0,83884.0,0.34610748]
[1744829255741,0.24224976,83885.0,83884.0,0.34510748]
[1744829255940,0.24224976,83885.0,83884.0,0.22680748]
[1744829256637,0.24224976,83885.0,83884.0,0.35510748]
[1744829256941,0.005,83890.0,83886.0,0.059603]
[1744829257136,0.03137874,83890.0,83889.0,0.1192027]
[1744829257335,0.02264384,83890.0,83889.0,0.3622027]
[1744829258847,0.0595973,83895.0,83889.0,0.3622027]
[1744829258848,0.3693131,83900.0,83899.0,0.1191885]
[1744829259150,0.2501253,83900.0,83899.0,0.4799885]
[1744829259543,0.1,83900.0,83899.0,0.7229885]
[1744829260149,0.1,83900.0,83899.0,0.6032885]
[1744829260343,0.1501253,83902.0,83901.0,0.1191857]
[1744829260735,0.16760128,83902.0,83881.0,0.3608]
[1744829260943,0.1191984,83892.0,83891.0,0.01468851]
[1744829261143,0.2383982,83892.0,83891.0,0.1192799]
[1744829261442,0.2374,83892.0,83891.0,0.1191999]
[1744829261649,0.2374,83892.0,83891.0,0.1192799]
[1744829262142,0.3565984,83892.0,83891.0,0.1202799]
[1744829262342,0.3585984,83892.0,83891.0,0.1202799]
[1744829263535,0.2394,83892.0,83891.0,0.1202799]
[1744829263736,0.002,83892.0,83891.0,0.2409799]
[1744829264138,0.0595985,83893.0,83892.0,0.2383908]
[1744829264341,0.1787969,83893.0,83892.0,0.1191966]
[1744829264535,0.1787969,83893.0,83892.0,0.1291966]
[1744829264840,0.4195969,83893.0,83892.0,8e-05]
[1744829265041,0.1788012,83891.0,83890.0,0.0596005]
[1744829265238,0.1192013,83890.0,83889.0,0.3608]
[1744829265433,0.3600013,83890.0,83889.0,0.4800027]
[1744829265840,0.3600013,83890.0,83889.0,0.3608]
[1744829266038,0.1192098,83884.0,83883.0,5.85187887]
[1744829266538,0.3501098,83884.0,83883.0,5.95990661]
[1744829266742,0.3501098,83884.0,83883.0,5.95998661]
[1744829267347,0.3521098,83884.0,83883.0,5.84177541]
[1744829268242,0.3531098,83884.0,83883.0,5.84177541]
[1744829268444,0.3531098,83884.0,83883.0,5.84169541]
[1744829268647,0.3531098,83884.0,83883.0,5.84177541]
[1744829269742,0.3511098,83884.0,83883.0,5.84077541]
[1744829269939,0.3531098,83884.0,83883.0,5.84177541]
[1744829270136,0.3531098,83884.0,83883.0,4.58643608]
[1744829270137,0.9639098,83884.0,83883.0,4.58643608]
[1744829270342,0.9629098,83884.0,83883.0,4.58643608]
[1744829270543,0.9639098,83884.0,83883.0,4.58635608]
[1744829270745,0.9639098,83884.0,83883.0,4.58643608]
[1744829271746,0.9639098,83884.0,83883.0,0.66417562]
[1744829271935,0.9639098,83884.0,83843.0,0.0596337]
[1744829271936,0.1192411,83862.0,83843.0,0.0596337]
[1744829272142,0.1788928,83849.0,83848.0,0.1192605]
[1744829272342,0.2385232,83849.0,83848.0,0.01]
[1744829272653,0.1192638,83847.0,83846.0,0.0596312]
[1744829272841,0.1192638,83847.0,83843.0,0.0596334]
[1744829272842,0.1192738,83839.0,83838.0,0.17955231]
[1744829273341,0.00889112,83839.0,83838.0,0.65962751]
[1744829273643,0.11944127,83847.0,83846.0,0.1192638]
[1744829274346,0.11944127,83847.0,83841.0,0.119]
[1744829274347,0.1192738,83839.0,83838.0,0.29982451]
[1744829274646,0.1192738,83839.0,83838.0,0.1223802]
[1744829274840,0.1192738,83839.0,83838.0,0.1223832]
[1744829275240,0.3512738,83839.0,83838.0,0.1223832]
[1744829275442,0.3512738,83839.0,83838.0,0.1233832]
[1744829276150,0.3512738,83839.0,83838.0,0.1213552]
[1744829276447,0.3512738,83839.0,83838.0,0.1212752]
[1744829276643,0.3522738,83839.0,83838.0,0.1223552]
[1744829276846,0.3522738,83839.0,83838.0,0.1222752]
[1744829277037,0.3522738,83839.0,83838.0,0.1223552]
[1744829277238,0.001,83839.0,83838.0,0.1222752]
[1744829277438,0.1202738,83839.0,83838.0,0.1313552]
[1744829278251,0.1202738,83839.0,83838.0,0.1213552]
[1744829278252,0.2358738,83839.0,83838.0,0.1213552]
[1744829278549,0.2358738,83839.0,83838.0,0.1212752]
[1744829278951,0.2358738,83839.0,83838.0,0.1213552]
[1744829278952,0.1202738,83839.0,83838.0,0.1213552]
[1744829279140,0.1202738,83839.0,83838.0,0.2347552]
[1744829279446,0.1202738,83839.0,83838.0,0.7087552]
[1744829279645,0.1202738,83839.0,83838.0,0.7187552]
[1744829280651,0.001,83839.0,83838.0,0.7187552]
[1744829282855,0.00924804,83847.0,83846.0,0.1192638]
[1744829283153,0.00017887,83847.0,83846.0,0.4900638]
[1744829283341,0.00017887,83847.0,83846.0,0.7230638]
[1744829283746,0.0596217,83861.0,83860.0,0.1192439]
[1744829284055,0.06839847,83861.0,83860.0,0.1192439]
[1744829284257,0.06839847,83861.0,83860.0,0.2315439]
[1744829284647,0.31384686,83861.0,83860.0,0.2315439]
[1744829285053,0.31384686,83861.0,83860.0,0.3524439]
[1744829285558,0.02602516,83861.0,83860.0,0.3524439]
[1744829285758,0.1192413,83862.0,83861.0,0.1788623]
[1744829285957,0.1501253,83863.0,83861.0,0.0596212]
[1744829286259,0.00017887,83869.0,83868.0,0.1192326]
[1744829286458,0.00017887,83869.0,83868.0,0.5000326]
[1744829286958,0.11940997,83869.0,83868.0,0.02]
[1744829287154,0.1192397,83863.0,83862.0,0.2342399]
[1744829287344,0.1213,83868.0,83865.0,0.0596177]
[1744829287552,0.00117887,83869.0,83868.0,0.1233126]
[1744829287852,0.00117887,83869.0,83868.0,0.1353126]
[1744829288048,0.12040997,83869.0,83868.0,0.1353126]
[1744829288246,0.00117887,83869.0,83868.0,0.1353126]
[1744829288445,0.12040997,83869.0,83868.0,0.1333126]
[1744829288950,0.12845883,83869.0,83868.0,0.1292326]
[1744829289149,0.12945883,83869.0,83868.0,0.1293126]
[1744829289356,0.12945883,83869.0,83868.0,0.1292326]
[1744829289551,0.12845883,83869.0,83868.0,0.1292326]
[1744829289762,0.12945883,83869.0,83868.0,0.1333126]
[1744829289956,0.12945883,83869.0,83868.0,0.1353126]
[1744829290155,0.12945883,83869.0,83868.0,0.1313126]
[1744829290760,0.12845883,83869.0,83868.0,0.1303126]
[1744829291755,0.12845883,83869.0,83868.0,0.01108]
[1744829291949,0.12845883,83869.0,83868.0,0.001]
[1744829292149,0.12845883,83869.0,83868.0,8e-05]
[1744829292354,0.12845883,83869.0,83868.0,0.00108]
[1744829292756,0.48925883,83869.0,83868.0,8e-05]
[1744829293049,0.49325883,83869.0,83868.0,0.002]
[1744829293356,0.12845883,83869.0,83868.0,0.1202326]
[1744829293557,0.12945883,83869.0,83868.0,0.1202326]
[1744829293754,0.12945883,83869.0,83868.0,0.1203126]
[1744829293952,0.13045883,83869.0,83868.0,8e-05]
[1744829294151,0.13345883,83869.0,83868.0,0.00108]
[1744829294455,0.35935883,83869.0,83868.0,0.001]
[1744829294658,0.35735883,83869.0,83868.0,0.00108]
[1744829295453,0.35535883,83869.0,83868.0,8e-05]
[1744829295950,0.35735883,83869.0,83868.0,0.00108]
[1744829296156,0.35735883,83869.0,83868.0,0.1203126]
[1744829296754,0.35935883,83869.0,83868.0,0.1203126]
[1744829297059,0.35635883,83869.0,83868.0,0.1193126]
[1744829297251,0.35635883,83869.0,83868.0,8e-05]
[1744829297451,0.35435883,83869.0,83868.0,8e-05]
[1744829297756,0.35535883,83869.0,83868.0,8e-05]
[1744829297960,0.35635883,83869.0,83868.0,8e-05]
[1744829298866,0.35635883,83869.0,83868.0,0.1193126]
[1744829299267,0.35635883,83869.0,83868.0,8e-05]
[1744829300765,0.35535883,83869.0,83868.0,8e-05]
[1744829301066,0.35635883,83869.0,83868.0,8e-05]
[1744829302262,0.23612773,83869.0,83861.0,0.000108]
[1744829302563,0.3608,83862.0,83851.0,0.000108]
[1744829302762,0.3608,83862.0,83838.0,0.01]
[1744829302763,0.1192738,83839.0,83838.0,0.01]
[1744829302963,0.1192738,83839.0,83835.0,0.00508607]
[1744829302964,0.1192781,83836.0,83835.0,0.00508607]
[1744829303763,0.1192781,83836.0,83835.0,7e-08]
[1744829304163,0.1192781,83836.0,83835.0,8.007e-05]
[1744829304360,0.1192781,83836.0,83835.0,7e-08]
[1744829304560,0.1192781,83836.0,83827.0,0.00017887]
[1744829304561,0.1192894,83828.0,83827.0,7e-08]
[1744829304754,0.1193008,83820.0,83819.0,0.000108]
[1744829305061,0.14064712,83820.0,83819.0,0.000108]
[1744829305362,0.14064712,83820.0,83813.0,0.0001458]
[1744829305363,0.1193094,83814.0,83813.0,0.0001458]
[1744829305557,0.1193094,83814.0,83811.0,0.17944431]
[1744829305558,0.1193122,83812.0,83811.0,0.17944431]
[1744829305964,0.1193122,83812.0,83811.0,0.12569611]
[1744829306168,0.3461122,83812.0,83811.0,0.12577611]
[1744829306465,0.35509803,83812.0,83811.0,0.12569611]
[1744829306657,0.23578583,83812.0,83811.0,0.24508971]
[1744829306962,0.35509803,83812.0,83811.0,0.12577611]
[1744829307355,0.35509803,83812.0,83811.0,0.12569611]
[1744829307562,0.41475473,83812.0,83811.0,0.4801936]
[1744829307757,0.00898583,83812.0,83811.0,0.4801936]
[1744829307961,0.02152529,83820.0,83819.0,0.1193023]
[1744829308165,0.02152529,83820.0,83819.0,0.1393023]
[1744829308769,0.03052723,83820.0,83819.0,0.3795023]
[1744829308968,0.02152529,83820.0,83819.0,0.3795023]
[1744829309263,0.14182609,83820.0,83819.0,0.1387]
[1744829309462,0.14082609,83820.0,83819.0,0.1387]
[1744829309860,0.14082609,83820.0,83819.0,0.2580023]
[1744829310270,0.02152529,83820.0,83819.0,0.2390023]
[1744829310471,0.14082609,83820.0,83819.0,0.2390023]
[1744829310764,0.14082609,83820.0,83819.0,0.2390823]
[1744829310964,0.03043234,83820.0,83819.0,0.2380823]
[1744829311165,0.03143234,83820.0,83819.0,0.2500823]
[1744829311356,0.01008602,83820.0,83819.0,0.2500823]
[1744829311556,0.03247716,83820.0,83819.0,0.2500823]
[1744829311760,0.15177796,83820.0,83819.0,0.2500823]
[1744829312366,0.15177796,83820.0,83819.0,0.2520823]
[1744829312564,0.15177796,83820.0,83819.0,0.2530823]
[1744829312862,0.00908602,83820.0,83819.0,0.2490823]
[1744829313064,0.01008602,83820.0,83819.0,0.2530823]
[1744829313263,0.01008602,83820.0,83819.0,0.2520823]
[1744829313460,0.01008602,83820.0,83819.0,0.2540823]
[1744829313661,0.1789115,83840.0,83839.0,0.119271]
[1744829313861,0.2385497,83840.0,83839.0,0.119271]
[1744829314860,0.2415497,83840.0,83839.0,0.120271]
[1744829315365,0.2637829,83840.0,83839.0,0.119271]
[1744829315560,0.2607829,83840.0,83839.0,0.120271]
[1744829315868,0.2627829,83840.0,83839.0,0.120271]
[1744829316065,0.01117453,83840.0,83839.0,0.129271]
[1744829316568,0.12844082,83848.0,83847.0,0.1192624]
[1744829316770,0.00017897,83848.0,83847.0,0.5000624]
[1744829316971,0.00017897,83848.0,83847.0,0.7362624]
[1744829317158,0.11943997,83848.0,83847.0,0.7362624]
[1744829318173,0.12043997,83848.0,83847.0,0.1185]
[1744829318568,0.12043997,83848.0,83847.0,0.11858]
[1744829318774,0.36102023,83848.0,83847.0,0.1233424]
[1744829318972,0.36102023,83848.0,83847.0,0.1232624]
[1744829319275,0.24312023,83848.0,83847.0,0.1243424]
[1744829319468,0.01015923,83848.0,83847.0,0.1343424]
[1744829319663,0.01015923,83848.0,83847.0,0.2452424]
[1744829320170,0.02163183,83862.0,83856.0,0.0596244]
[1744829320370,0.02163183,83862.0,83861.0,0.1192425]
[1744829320371,0.178866,83862.0,83861.0,0.1192425]
[1744829320566,0.20090918,83862.0,83861.0,0.1192425]
[1744829320961,0.20986717,83862.0,83861.0,0.1192425]
[1744829321163,0.03100117,83862.0,83861.0,0.1192425]
[1744829321363,0.005,83864.0,83863.0,0.1192397]
[1744829321870,0.01390339,83864.0,83863.0,0.1192397]
[1744829322076,0.01390339,83864.0,83863.0,0.3819397]
[1744829322274,0.005,83864.0,83863.0,0.3819397]
[1744829322678,0.006,83864.0,83863.0,0.3819397]
[1744829322973,0.15093062,83873.0,83872.0,0.1192269]
[1744829323175,0.21609082,83890.0,83872.0,0.8316]
[1744829323375,0.21609082,83890.0,83889.0,0.1192027]
[1744829323580,0.21609082,83890.0,83889.0,0.3608]
[1744829323581,0.35662035,83890.0,83889.0,0.3608]
[1744829323780,0.35662035,83890.0,83873.0,0.2425012]
[1744829323781,0.2384282,83883.0,83882.0,0.059606]
[1744829323974,0.059603,83887.0,83883.0,0.0596056]
[1744829324182,0.22514279,83890.0,83889.0,0.1192027]
[1744829324477,0.01405197,83890.0,83889.0,0.4900027]
[1744829325182,0.01405197,83890.0,83889.0,0.6056027]
[1744829325487,0.01405197,83890.0,83889.0,0.6076027]
[1744829325673,0.01405197,83890.0,83889.0,0.6086027]
[1744829325982,0.01405197,83890.0,83889.0,0.6066027]
[1744829326188,0.13425327,83890.0,83889.0,0.6086027]
[1744829326983,0.01505197,83890.0,83889.0,0.6086027]
[1744829327282,0.13425327,83890.0,83889.0,0.6086027]
[1744829327488,0.13425327,83890.0,83889.0,0.6086827]
[1744829327781,0.13425327,83890.0,83889.0,0.48948]
[1744829327982,0.49505327,83890.0,83889.0,0.003]
[1744829328287,0.49505327,83890.0,83889.0,0.00308]
[1744829328483,0.49505327,83890.0,83889.0,0.003]
[1744829328785,0.49505327,83890.0,83889.0,0.00308]
[1744829330391,0.61805327,83890.0,83889.0,0.00308]
[1744829330580,0.86805327,83890.0,83889.0,0.00308]
[1744829330881,0.61805327,83890.0,83889.0,0.003]
[1744829331085,0.61805327,83890.0,83889.0,0.00308]
[1744829333392,0.25725327,83890.0,83889.0,0.1222827]
[1744829333795,0.25725327,83890.0,83889.0,0.00308]
[1744829334102,0.25725327,83890.0,83889.0,0.1222827]
[1744829335895,0.01505197,83890.0,83889.0,0.6076827]
[1744829336193,0.01505197,83890.0,83889.0,0.7288827]
[1744829337098,0.13425327,83890.0,83889.0,0.7288827]
[1744829337296,0.006,83890.0,83889.0,0.7288827]
[1744829337495,0.3608,83926.0,83915.0,0.1191658]
[1744829337696,0.02695964,83916.0,83915.0,0.1191658]
[1744829337998,0.21119883,83929.0,83928.0,0.1191473]
[1744829338195,0.35207274,83929.0,83928.0,0.1191473]
[1744829338400,0.35207274,83929.0,83919.0,0.1787307]
[1744829338401,0.1191601,83920.0,83919.0,0.1787307]
[1744829338696,0.1191644,83916.0,83915.0,0.001]
[1744829339201,0.1191644,83916.0,83912.0,0.0595848]
[1744829339202,0.1191672,83914.0,83913.0,0.1191672]
[1744829339604,0.1787565,83912.0,83911.0,0.1191703]
[1744829339801,0.1787565,83912.0,83910.0,0.1192808]
[1744829339802,0.1191715,83911.0,83910.0,0.1192808]
[1744829340000,0.1191757,83908.0,83906.0,0.1212]
[1744829340299,0.1191757,83908.0,83904.0,0.000108]
[1744829340490,0.1191757,83908.0,83895.0,0.1819964]
[1744829340491,0.3529757,83908.0,83895.0,0.1819964]
[1744829340690,0.3529757,83908.0,83907.0,0.00025875]
[1744829340896,0.3529757,83908.0,83907.0,0.00017875]
[1744829341092,0.1191984,83892.0,83891.0,0.0099012]
[1744829341302,0.1192027,83889.0,83888.0,0.00019683]
[1744829341590,0.1192041,83888.0,83881.0,0.1224]
[1744829341806,0.1192041,83888.0,83880.0,0.000108]
[1744829341807,0.2372041,83888.0,83880.0,0.000108]
[1744829342108,0.2372041,83888.0,83887.0,0.00520591]
[1744829342498,0.3573041,83888.0,83887.0,0.00512591]
[1744829342803,0.3603041,83888.0,83887.0,0.00512591]
[1744829343107,0.0596058,83883.0,83876.0,0.000108]
[1744829343297,0.4800198,83877.0,83876.0,0.000108]
[1744829343498,0.4800198,83877.0,83864.0,0.2343382]
[1744829343499,0.1192368,83865.0,83864.0,0.2343382]
[1744829343802,0.1192397,83863.0,83862.0,0.3609458]
[1744829343999,0.0596148,83873.0,83872.0,0.0596131]
[1744829344403,0.002,83877.0,83874.0,0.0596114]
[1744829344605,0.1212198,83877.0,83876.0,0.1192212]
[1744829344912,0.1212198,83877.0,83876.0,0.3585212]
[1744829345409,0.11939296,83881.0,83880.0,0.1192155]
[1744829345707,0.12855049,83881.0,83880.0,0.1292155]
[1744829346403,0.24185049,83881.0,83880.0,0.1292155]
[1744829346605,0.24185049,83881.0,83880.0,0.1292955]
[1744829347204,0.12855049,83881.0,83880.0,0.1292955]
[1744829347911,0.12855049,83881.0,83880.0,0.01]
[1744829348099,0.12855049,83881.0,83868.0,0.0596158]
[1744829348100,0.119224,83874.0,83873.0,0.11942083]
[1744829348410,0.480024,83874.0,83873.0,0.119224]
[1744829348606,0.709924,83874.0,83873.0,0.119304]
[1744829348910,0.349124,83874.0,83873.0,8e-05]
[1744829349294,0.350124,83874.0,83873.0,8e-05]
[1744829349501,0.1192368,83865.0,83861.0,0.0051275]
[1744829349806,0.4800368,83865.0,83863.0,0.00019683]
[1744829349996,0.4800368,83865.0,83861.0,0.00539322]
[1744829349997,0.4800368,83865.0,83861.0,0.0051275]
[1744829350199,0.4800368,83865.0,83864.0,0.00025886]
[1744829350401,0.4800368,83865.0,83864.0,0.00017886]
[1744829350402,0.7099368,83865.0,83864.0,0.00017886]
[1744829350703,0.7099368,83865.0,83864.0,0.00025886]
[1744829350905,0.5907,83865.0,83861.0,0.0051275]
[1744829351207,0.002,83874.0,83871.0,0.119228]
[1744829351409,0.002,83874.0,83873.0,0.4800254]
[1744829351597,0.002,83874.0,83873.0,0.5000254]
[1744829351799,0.00933639,83881.0,83880.0,0.1192155]
[1744829352201,0.12855049,83881.0,83880.0,0.1292155]
[1744829352602,0.00933639,83881.0,83880.0,0.7280155]
[1744829352809,0.00017886,83881.0,83880.0,0.7280155]
[1744829353509,0.00017886,83881.0,83880.0,0.7280955]
[1744829353711,0.12845478,83881.0,83880.0,0.13328]
[1744829353914,0.1192354,83866.0,83861.0,0.3659275]
[1744829354110,0.1192354,83866.0,83865.0,0.00032466]
[1744829354413,0.1192411,83862.0,83861.0,0.0051275]
[1744829354604,0.4800411,83862.0,83861.0,0.0051275]
[1744829355001,0.4800411,83862.0,83861.0,0.12437]
[1744829355409,0.1252377,83866.0,83865.0,0.1192368]
[1744829355810,0.3572377,83866.0,83865.0,0.1192368]
[1744829356011,0.1192397,83864.0,83863.0,0.1192392]
[1744829356206,0.1192411,83862.0,83861.0,0.1253695]
[1744829356715,0.1192411,83862.0,83861.0,0.1254495]
[1744829356907,0.2345411,83862.0,83861.0,0.1254495]
[1744829357207,0.3557411,83862.0,83861.0,0.1254495]
[1744829357408,0.002,83862.0,83861.0,0.1254495]
[1744829357620,0.1212411,83862.0,83861.0,0.1254495]
[1744829357912,0.1192411,83862.0,83861.0,0.1264495]
[1744829358505,0.1192411,83862.0,83861.0,0.1254495]
[1744829359217,0.0596188,83865.0,83864.0,0.1192382]
[1744829359514,0.0596188,83865.0,83864.0,0.4800382]
[1744829360011,0.3608,83878.0,83871.0,0.0596137]
[1744829360221,0.2312263,83873.0,83872.0,0.1788403]
[1744829360409,0.2312263,83873.0,83872.0,0.3016403]
[1744829360715,0.3500263,83873.0,83872.0,0.3016403]
[1744829361218,0.1192269,83872.0,83871.0,0.4800281]
[1744829361718,0.3562269,83872.0,83871.0,0.4800281]
[1744829362209,0.3572269,83872.0,83871.0,0.3608]
[1744829362415,0.3572269,83872.0,83871.0,0.4800283]
[1744829362817,0.3562269,83872.0,83871.0,0.4810283]
[1744829363315,0.1192269,83872.0,83871.0,0.4810283]
[1744829364010,0.1192207,83877.0,83876.0,0.1192198]
[1744829364210,0.0596086,83879.0,83878.0,0.1192183]
[1744829364412,0.0596086,83879.0,83878.0,0.4800183]
[1744829364609,0.00924068,83881.0,83880.0,0.1192155]
[1744829364811,4e-08,83889.0,83888.0,0.1192041]
[1744829365016,0.15126686,83895.0,83888.0,0.1192041]
[1744829365017,0.1600328,83895.0,83894.0,0.1191956]
[1744829365208,0.1600328,83895.0,83894.0,0.1291956]
[1744829365713,0.1600328,83895.0,83894.0,0.2413956]
[1744829366106,0.1600328,83895.0,83894.0,0.3604956]
[1744829366513,0.15126686,83895.0,83894.0,0.3604956]
[1744829366717,0.18116302,83901.0,83900.0,0.1191871]
[1744829366917,0.18116302,83901.0,83900.0,0.4799871]
[1744829367319,0.18116302,83901.0,83900.0,0.4899871]
[1744829367713,0.18116302,83901.0,83900.0,0.5964871]
[1744829368326,0.18116302,83901.0,83900.0,0.4909871]
[1744829368327,0.30949847,83901.0,83900.0,0.4909871]
[1744829368621,0.30949847,83901.0,83900.0,0.4910671]
[1744829368824,0.30949847,83901.0,83900.0,0.5995671]
[1744829369122,0.30949847,83901.0,83900.0,0.5895671]
[1744829369521,0.18116302,83901.0,83900.0,0.5895671]
[1744829369820,0.005,83916.0,83915.0,0.1191658]
[1744829370018,0.005,83916.0,83915.0,0.4899658]
[1744829370423,0.005,83916.0,83915.0,0.6049658]
[1744829370626,0.005,83916.0,83915.0,0.7265658]
[1744829371016,0.1261644,83916.0,83915.0,0.7265658]
[1744829371524,0.2312644,83916.0,83915.0,0.7265658]
[1744829371821,0.01591383,83916.0,83915.0,0.7265658]
[1744829372027,0.13507823,83916.0,83915.0,0.7265658]
[1744829372238,0.24947823,83916.0,83915.0,0.6115658]
[1744829372525,0.36747823,83916.0,83915.0,0.6115658]
[1744829372727,0.01891383,83916.0,83915.0,0.6115658]
[1744829372910,0.13807823,83916.0,83915.0,0.7203658]
[1744829373115,0.13807823,83916.0,83915.0,0.6115658]
[1744829373422,0.25247823,83916.0,83915.0,0.6115658]
[1744829373621,0.25247823,83916.0,83915.0,0.7203658]
[1744829373821,0.36747823,83916.0,83915.0,0.6115658]
[1744829375637,0.36747823,83916.0,83915.0,0.2507658]
[1744829376427,0.01891383,83916.0,83915.0,0.2507658]
[1744829376927,0.13807823,83916.0,83915.0,0.2507658]
[1744829377631,0.25177823,83916.0,83915.0,0.2507658]
[1744829378120,0.01891383,83916.0,83915.0,0.2507658]
[1744829378319,0.00014581,83926.0,83923.0,0.1191544]
[1744829378320,0.11941175,83924.0,83923.0,0.1191544]
[1744829378520,0.11933175,83924.0,83923.0,0.1191544]
[1744829378720,0.23493175,83924.0,83923.0,0.1191544]
[1744829378927,0.23493175,83924.0,83923.0,0.2359544]
[1744829379129,0.24389945,83924.0,83923.0,0.2359544]
[1744829379327,0.24397945,83924.0,83923.0,0.2359544]
[1744829379517,0.0595814,83917.0,83916.0,0.1191629]
[1744829379722,0.1787458,83917.0,83916.0,0.2559629]
[1744829379931,0.1787458,83917.0,83916.0,0.2560429]
[1744829380228,0.2224,83918.0,83917.0,0.1191629]
[1744829380420,0.00048428,83936.0,83923.0,0.1191544]
[1744829380621,0.00113806,83936.0,83935.0,0.4799374]
[1744829380934,0.1191306,83940.0,83939.0,0.1191289]
[1744829381229,0.1191306,83940.0,83926.0,0.27819506]
[1744829381230,0.0595757,83926.0,83923.0,0.01]
[1744829381427,0.0595771,83924.0,83923.0,0.1391522]
[1744829381620,0.0595771,83924.0,83923.0,0.02008]